[Event "European Women-ch 2023"]
[Site "Petrovac"]
[Date "2023.03.23"]
[Round "6.18"]
[White "Kostina, Veronika"]
[Black "Maione, Melissa"]
[Result "1-0"]
[ECO "B30"]
[WhiteElo "1855"]
[BlackElo "2028"]
[Annotator "TA"]
[PlyCount "73"]
[EventDate "2023.03.15"]
[EventType "swiss"]
[EventCountry "MNE"]
[SourceTitle "playchess.com"]
[Source "ChessBase"]
[SourceQuality "1"]
[TimeControl "40/5400+30:1800+30"]

{[%evp 9,73,10,6,0,0,0,11,11,18,0,11,5,0,0,0,0,0,-1,27,0,74,66,171,102,151,135,303,298,520,298,739,742,29994,380,371,383,368,371,381,375,416,405,423,428,500,516,491,490,478,460,608,598,608,608,608,608,579,574,707,674,725,648,812,797,775,709]} 1. e4 {[%emt 0:00:04]} c5 {[%emt 0:00:12]} 2. Nc3 {[%emt 0:00:08]} Nc6 {[%emt 0:00:15]} 3. Bb5 {[%emt 0:00:11]} Nd4 {[%emt 0:01:01]} 4. Bc4 {[%emt 0:00:13]} a6 {[%emt 0:03:15]} 5. Nf3 {[%emt 0:01:30]} e6 {[%emt 0:01:43]} 6. Nxd4 {[%emt 0:00:38]} cxd4 {[%emt 0:00:23]} 7. Ne2 {[%emt 0:00:09]} b5 {[%emt 0:03:30]} 8. Bb3 {[%emt 0:00:47] The position is equal.} Bc5 {[%emt 0:00:45]} 9. O-O {[%emt 0:00:48]} Ne7 {[%emt 0:00:22]} 10. d3 {[%emt 0:02:08]} O-O {[%emt 0:01:50]} 11. Bg5 {[%emt 0:09:13]} f6 {[%emt 0:03:06]} 12. Bd2 {[%emt 0:04:23]} Kh8 {[%emt 0:07:29]} 13. Ng3 {[%emt 0:04:32]} d5 {[%emt 0:08:19]} 14. Qh5 {[%emt 0:03:55]} e5 {[%emt 0:07:14] [#]} (14... a5 $11 {keeps the balance.} 15. a4 b4) 15. f4 $1 $16 {[%emt 0:05:33] White is more active.} f5 {[%emt 0:09:22]} (15... Bd6 $14) 16. exf5 {[%emt 0:17:50]} (16. fxe5 $18 {exd5 would be deadly.} dxe4 17. dxe4) 16... e4 {[%emt 0:01:34]} (16... Nxf5 $142 17. fxe5 Nxg3 18. hxg3 Rxf1+ 19. Rxf1 Be6) 17. dxe4 {[%emt 0:02:33][%cal Of5f6]} d3+ $2 {[%emt 0:00:21] Black cannot hold the game after this.} (17... a5 $16 {is a better defense.} 18. a4 bxa4) 18. Kh1 $18 {[%emt 0:00:51]} dxe4 $2 {[%emt 0:00:08]} (18... dxc2 19. Bxc2 Bd7) 19. Nxe4 {[%emt 0:01:38]} Rxf5 $2 {[%emt 0:10:17]} (19... Bd4 20. Ng5 (20. cxd3 Bxf5 21. Rae1 Bxb2 $18) 20... Bxf5) 20. Ng5 {[%emt 0:02:55][%csl Gg5][%cal Rh5h7] [#]} h6 {[%emt 0:05:31]} 21. Nf7+ $2 {[%emt 0:03:35]} (21. Bc3 {mates} Bd4 22. Bxd4 Rf6 23. Bxf6 Ng8 24. Bxg7+ {[%mdl 64] Decoy} Kxg7 25. Qf7+ Kh8 26. Qh7#) 21... Kh7 {[%emt 0:00:45]} 22. Qxf5+ {[%emt 0:01:02]} ({Less strong is} 22. Nxd8 Rxh5 23. Rf3 (23. cxd3 Nf5 $11) 23... Bf5 $16) 22... Bxf5 {[%emt 0:00:07]} 23. Nxd8 {[%emt 0:00:05]} Rxd8 {[%emt 0:00:05]} 24. cxd3 {[%emt 0:01:04]} Rxd3 {[%emt 0:01:56]} 25. Bc3 {[%emt 0:01:15]} b4 {[%emt 0:00:28]} 26. Be5 {[%emt 0:00:49] White is clearly winning.} Rd2 {[%emt 0:01:19]} 27. Rad1 {[%emt 0:02:08]} Re2 {[%emt 0:05:49]} 28. Bc4 {[%emt 0:01:18]} Rc2 {[%emt 0:01:10]} 29. Bxa6 {[%emt 0:01:05]} Ng6 {[%emt 0:02:37]} 30. Rc1 {[%emt 0:02:57]} Rxc1 {[%emt 0:03:40]} 31. Rxc1 {[%emt 0:00:01]} Be3 {[%emt 0:00:24]} 32. Rc7 {[%emt 0:01:29]} Nxe5 {[%emt 0:01:07]} 33. fxe5 {[%emt 0:00:16][%cal Bf4e5,Be5e6][%mdl 32]} Bf4 {[%emt 0:03:49]} 34. Rc4 {[%emt 0:01:17]} Bd2 {[%emt 0:00:08]} 35. Bc8 {[%emt 0:01:03]} Bg6 {[%emt 0:00:50]} 36. e6 {[%emt 0:00:35]} Kg8 {[%emt 0:01:31]} 37. Rd4 {[%emt 0:00:42] Weighted Error Value: White=0.35/Black=0.64} 1-0

[Event "European Women-ch 2023"]
[Site "Petrovac"]
[Date "2023.03.23"]
[Round "6.19"]
[White "Shpanko, Nadiia"]
[Black "Balajayeva, Khanim"]
[Result "1/2-1/2"]
[ECO "C42"]
[WhiteElo "2164"]
[BlackElo "2372"]
[Annotator "TA"]
[PlyCount "62"]
[EventDate "2023.03.15"]
[EventType "swiss"]
[EventCountry "MNE"]
[SourceTitle "playchess.com"]
[Source "ChessBase"]
[SourceQuality "1"]
[TimeControl "40/5400+30:1800+30"]

{[%evp 17,62,0,-4,0,0,8,7,0,17,29,32,3,-2,-13,-15,-10,-15,-22,-10,-36,-26,-33,-32,-33,0,-17,0,-28,0,-7,0,0,0,0,0,0,0,0,0,0,0,0,0,0,0,0,-6]} 1. e4 {[%emt 0:00:03]} e5 {[%emt 0:00:09]} 2. Nf3 {[%emt 0:00:23]} Nf6 {[%emt 0:00:06]} 3. Nxe5 {[%emt 0:01:58]} d6 {[%emt 0:00:05]} 4. Nf3 {[%emt 0:00:09]} Nxe4 {[%emt 0:00:06]} 5. Qe2 {[%emt 0:00:16]} Qe7 {[%emt 0:00:26]} 6. d3 {[%emt 0:00:54]} Nf6 {[%emt 0:00:11]} 7. Bg5 {[%emt 0:02:27]} Qxe2+ {[%emt 0:02:54]} 8. Bxe2 {[%emt 0:02:45]} Be7 {[%emt 0:00:11]} 9. Nc3 {[%emt 0:04:03]} h6 {[%emt 0:01:09]} 10. Bd2 {[%emt 0:04:02]} c6 {[%emt 0:02:07]} 11. Ne4 {[%emt 0:02:59]} O-O {[%emt 0:05:43]} 12. O-O-O {[%emt 0:01:43]} d5 {[%emt 0:07:52]} 13. Nxf6+ {[%emt 0:00:07]} Bxf6 {[%emt 0:00:03]} 14. d4 {[%emt 0:00:21]} Bf5 {[%emt 0:07:43][%cal Bc8f5,Bf5e4,Be4h7][%mdl 32]} 15. h3 {[%emt 0:13:38]} Re8 {[%emt 0:01:45]} 16. Rhe1 {[%emt 0:01:18]} Nd7 {[%emt 0:00:59][%cal Bb8d7,Bd7f8,Bf8e6][%mdl 32]} 17. Be3 {[%emt 0:04:04]} Be4 {[%emt 0:07:07]} 18. g4 {[%emt 0:01:45]} Nf8 {[%emt 0:03:55]} 19. Nd2 {[%emt 0:01:15]} Bh7 {[%emt 0:00:14]} 20. Nf3 {[%emt 0:01:45]} Be4 {[%emt 0:11:25]} 21. Nd2 {[%emt 0:00:47]} Bh7 {[%emt 0:00:12]} 22. Nf3 {[%emt 0:00:17]} Ne6 {[%emt 0:01:02]} 23. Bd3 {[%emt 0:02:09] The position is equal.} Be4 {[%emt 0:05:14]} 24. Bxe4 {[%emt 0:04:29]} dxe4 {[%emt 0:00:03]} 25. Nd2 {[%emt 0:03:35]} Nxd4 {[%emt 0:03:25]} 26. Bxd4 {[%emt 0:00:17]} Bxd4 {[%emt 0:00:03]} 27. Nxe4 {[%emt 0:00:24]} Bb6 {[%emt 0:00:55]} 28. f3 {[%emt 0:00:32]} Rad8 {[%emt 0:00:20]} 29. c3 {[%emt 0:01:43]} Kf8 {[%emt 0:00:26]} 30. Rxd8 {[%emt 0:00:22]} Rxd8 {[%emt 0:01:27]} 31. Rd1 {[%emt 0:00:06]} Rxd1+ {[%emt 0:01:32] Weighted Error Value: White=0.03 (flawless) /Black=0.06 (flawless)} 1/2-1/2

[Event "European Women-ch 2023"]
[Site "Petrovac"]
[Date "2023.03.23"]
[Round "6.19"]
[White "Ter-Avetisjana, Agnesa Stepania"]
[Black "Goriachkina, Oksana"]
[Result "1-0"]
[ECO "A21"]
[WhiteElo "1974"]
[BlackElo "1759"]
[Annotator "TA"]
[PlyCount "83"]
[EventDate "2023.03.15"]
[EventType "swiss"]
[EventCountry "MNE"]
[SourceTitle "playchess.com"]
[Source "ChessBase"]
[SourceQuality "1"]
[TimeControl "40/5400+30:1800+30"]

{[%evp 9,83,-7,-9,6,19,-41,-41,-48,-48,-41,-37,-29,0,0,-2,0,0,-33,-52,-22,-29,-23,0,0,21,11,25,-19,68,58,80,74,117,110,151,145,195,215,206,212,256,245,255,224,287,287,284,284,289,291,274,275,302,289,266,235,235,225,271,271,271,271,604,579,565,539,698,594,1204,997,1129,757,29988,29989,29991,29984]} 1. c4 {[%emt 0:00:01]} e5 {[%emt 0:02:40]} 2. Nc3 {[%emt 0:01:37]} Bb4 {[%emt 0:00:30]} 3. e4 {[%emt 0:02:01]} d6 {[%emt 0:10:48]} 4. Nf3 {[%emt 0:05:23]} Nc6 {[%emt 0:01:06]} 5. a3 {[%emt 0:03:12]} Bc5 {[%emt 0:01:50]} 6. b4 {[%emt 0:02:14]} Bd4 {[%emt 0:00:32]} 7. b5 {[%emt 0:04:20]} ({White should play} 7. Nxd4 $11 Nxd4 8. Ne2) 7... Bxc3 $1 $15 {[%emt 0:17:31]} 8. dxc3 {[%emt 0:00:03] Black is slightly better.} Na5 {[%emt 0:01:05]} 9. c5 {[%emt 0:05:45]} Be6 {[%emt 0:03:43] Wards off c4} 10. Rb1 {[%emt 0:05:01] Against Nb3} b6 {[%emt 0:04:01]} 11. c6 {[%emt 0:05:58]} Nf6 {[%emt 0:03:43]} 12. Qc2 {[%emt 0:03:40]} d5 {[%emt 0:09:53]} 13. Ng5 {[%emt 0:15:45]} Nxe4 {[%emt 0:04:20]} 14. Nxe4 {[%emt 0:08:44]} dxe4 {[%emt 0:00:01]} 15. Qxe4 {[%emt 0:01:30]} Qd6 {[%emt 0:04:40]} 16. Be2 {[%emt 0:00:04]} f5 {[%emt 0:09:00]} 17. Qb4 {[%emt 0:01:43]} Qxb4 {[%emt 0:03:21]} (17... h6 {with more complications.} 18. f4 O-O-O 19. O-O Qxb4 20. Rxb4 Nb3) 18. Rxb4 {[%emt 0:04:04]} Kf7 {[%emt 0:03:42]} (18... Nb3 $11 19. O-O Nxc1 20. Rxc1 Ke7) 19. c4 $14 {[%emt 0:04:00] White is more active.} a6 {[%emt 0:00:26]} 20. a4 {[%emt 0:00:12][%cal Ba3a4,Ba4b5][%mdl 32] White now steadily converts the win.} axb5 {[%emt 0:00:54]} 21. axb5 {[%emt 0:00:28]} Rac8 {[%emt 0:04:33]} 22. Bb2 {[%emt 0:00:50]} e4 {[%emt 0:00:03]} (22... Rhe8 $16 23. Bxe5 f4) 23. Kd2 $18 {[%emt 0:05:33][%cal Be1d2,Bd2c2,Bc2d1][%mdl 32]} Rhd8+ {[%emt 0:04:23]} 24. Kc2 {[%emt 0:03:04]} Kg6 {[%emt 0:01:50]} 25. Rd1 {[%emt 0:06:41]} Rxd1 {[%emt 0:00:56]} 26. Kxd1 {[%emt 0:00:02]} Kf7 {[%emt 0:02:18]} 27. Be5 {[%emt 0:02:05]} g5 {[%emt 0:01:45]} 28. g3 {[%emt 0:00:12]} Ke7 {[%emt 0:00:17]} 29. Kc2 {[%emt 0:00:17]} Bf7 {[%emt 0:00:38]} 30. Ra4 {[%emt 0:01:24]} Ke6 {[%emt 0:00:20]} 31. Bc3 {[%emt 0:00:01]} Kd6 {[%emt 0:03:33]} 32. Bb4+ {[%emt 0:04:15]} Ke5 {[%emt 0:00:06]} 33. Kc3 {[%emt 0:01:42]} f4 {[%emt 0:01:12]} 34. Bxa5 {[%emt 0:01:48]} bxa5 {[%emt 0:00:57]} 35. Rxa5 {[%emt 0:00:39][%mdl 4096] Endgame KRB-KRB} Kd6 $2 {[%emt 0:00:39]} (35... Kf6 36. gxf4 gxf4) 36. gxf4 {[%emt 0:02:14]} gxf4 {[%emt 0:00:01]} 37. Kd4 {[%emt 0:00:07]} f3 {[%emt 0:01:02]} 38. Bf1 {[%emt 0:00:56] [#] aiming for c5+.} Bg6 {[%emt 0:00:36]} 39. c5+ {[%emt 0:00:15]} Ke7 {[%emt 0:00:01]} 40. Ra7 {[%emt 0:00:00] b6 is the strong threat.} Kd8 {[%emt 0:00:00]} 41. Bh3 {[%emt 0:04:07]} Rb8 {[%emt 0:00:56]} 42. Rb7 {[%emt 0:01:20] Weighted Error Value: White=0.12 (very precise) /Black=0.50} 1-0

[Event "European Women-ch 2023"]
[Site "Petrovac"]
[Date "2023.03.23"]
[Round "6.20"]
[White "Klek, Hanna Marie"]
[Black "Zherebtsova, Alexandra"]
[Result "1-0"]
[ECO "B32"]
[WhiteElo "2314"]
[BlackElo "2155"]
[Annotator "TA"]
[PlyCount "55"]
[EventDate "2023.03.15"]
[EventType "swiss"]
[EventCountry "MNE"]
[SourceTitle "playchess.com"]
[Source "ChessBase"]
[SourceQuality "1"]
[TimeControl "40/5400+30:1800+30"]

{[%evp 10,55,22,25,28,31,37,27,25,35,31,26,36,22,16,11,24,-16,-17,-8,-22,-133,-132,-202,-183,-204,-191,-140,-72,-81,-79,-64,-70,-86,0,0,0,0,74,60,66,97,758,765,752,745,733,733]} 1. e4 {[%emt 0:00:02]} c5 {[%emt 0:04:05]} 2. Nf3 {[%emt 0:00:05]} Nc6 {[%emt 0:00:45]} 3. d4 {[%emt 0:00:07]} cxd4 {[%emt 0:00:07]} 4. Nxd4 {[%emt 0:00:06]} e5 {[%emt 0:00:27]} 5. Nb5 {[%emt 0:00:17]} d6 {[%emt 0:00:25]} 6. c4 {[%emt 0:02:21]} g6 {[%emt 0:03:45]} 7. N1c3 {[%emt 0:00:50] Hoping for Nd5.} a6 {[%emt 0:00:18]} 8. Na3 {[%emt 0:00:06]} Be6 {[%emt 0:04:35] White has an edge.} 9. Be3 {[%emt 0:01:05]} Bg7 {[%emt 0:05:47]} 10. Nc2 {[%emt 0:05:29]} Nf6 {[%emt 0:01:47]} 11. Be2 {[%emt 0:01:19]} O-O {[%emt 0:00:42]} 12. Qd2 {[%emt 0:07:34]} Rc8 {[%emt 0:08:51]} 13. b3 {[%emt 0:06:59] [#]} b5 $1 {[%emt 0:13:09]} 14. cxb5 {[%emt 0:07:16]} axb5 {[%emt 0:05:35] Strongly threatening ...b4.} 15. b4 {[%emt 0:02:49]} (15. f3 $11) 15... Ne7 $17 {[%emt 0:08:35]} 16. Rc1 {[%emt 0:06:49] [#]} (16. Na3 $17) 16... d5 $1 $19 {[%emt 0:02:58] ...d4 would be deadly.} 17. exd5 {[%emt 0:00:32]} Nexd5 {[%emt 0:02:49]} ({Stronger than} 17... Nfxd5 18. Nxd5 Qxd5 19. O-O) 18. Nxd5 {[%emt 0:01:55]} Bxd5 {[%emt 0:02:56]} (18... Qxd5 $142 19. Qxd5 Nxd5) 19. O-O $17 {[%emt 0:14:17]} Ne4 {[%emt 0:08:37]} 20. Qe1 {[%emt 0:01:25]} Nc3 {[%emt 0:06:42] ...Nxe2+ is the strong threat.} 21. Na3 {[%emt 0:00:27][%csl LRb5,LRc3][%cal Bc2a3,Ba3b5,Bb5d6][%mdl 32]} Nxa2 {[%emt 0:05:56]} (21... Nxe2+ $17 22. Qxe2 Rxc1 23. Rxc1 Qa8 24. Nxb5 Bxg2) 22. Rxc8 $11 {[%emt 0:00:34]} Qxc8 {[%emt 0:00:04]} 23. Nxb5 {[%emt 0:01:01]} Qb7 {[%emt 0:00:56]} (23... Rd8 $11) 24. Qd2 $16 {[%emt 0:05:42]} e4 {[%emt 0:08:36]} 25. Bc5 {[%emt 0:03:36]} Ra8 $2 {[%emt 0:03:21][%mdl 8192] [#]} (25... Rb8 $16) 26. Nd6 $1 $18 {[%emt 0:01:26] White is clearly winning.} Bc3 {[%emt 0:00:46]} 27. Qd1 {[%emt 0:02:26]} Qc6 {[%emt 0:00:27]} 28. Bb5 {[%emt 0:00:11][%mdl 64] Deflection. Never resign too early!   Weighted Error Value: White=0.17 (very precise) /Black=0.21 (precise)} 1-0

[Event "European Women-ch 2023"]
[Site "Petrovac"]
[Date "2023.03.23"]
[Round "6.20"]
[White "Zhezhovska, Monika"]
[Black "Mashchenko, Tamila"]
[Result "1/2-1/2"]
[ECO "A59"]
[WhiteElo "1761"]
[BlackElo "1956"]
[Annotator "TA"]
[PlyCount "127"]
[EventDate "2023.03.15"]
[EventType "swiss"]
[EventCountry "MNE"]
[SourceTitle "playchess.com"]
[Source "ChessBase"]
[SourceQuality "1"]
[TimeControl "40/5400+30:1800+30"]

{[%evp 29,127,26,18,0,16,-65,-78,-207,-19,-29,-31,-85,-83,-128,-137,-169,-131,-138,-148,-145,-114,-295,-289,-274,-190,-181,-148,-190,-190,-190,-190,-190,-190,-190,-185,-178,-118,-116,-116,-116,-74,-116,-102,-129,-126,-197,-175,-179,-154,-208,-170,-206,-174,-193,-172,-216,-208,-239,-223,-223,-216,-208,-70,-70,-70,-70,-70,-70,-70,-70,-70,-93,-93,-93,-93,-93,-93,-93,-93,-93,0,-93,-8,-8,-8,-8,-8,-141,-8,-8,-8,-8,-8,-8,-12,-49,-49,-49,-49,-49]} 1. d4 {[%emt 0:00:04]} Nf6 {[%emt 0:00:07]} 2. c4 {[%emt 0:00:23]} c5 {[%emt 0:00:22]} 3. d5 {[%emt 0:00:15]} b5 {[%emt 0:00:20]} 4. cxb5 {[%emt 0:00:28]} a6 {[%emt 0:00:05]} 5. bxa6 {[%emt 0:00:36]} g6 {[%emt 0:00:06]} 6. Nc3 {[%emt 0:00:17]} Bxa6 {[%emt 0:00:06]} 7. Nf3 {[%emt 0:00:32]} d6 {[%emt 0:00:08]} 8. e4 {[%emt 0:00:32]} Bxf1 {[%emt 0:00:10]} 9. Kxf1 {[%emt 0:00:04]} Bg7 {[%emt 0:00:07]} 10. g3 {[%emt 0:00:21]} O-O {[%emt 0:00:09]} 11. Kg2 {[%emt 0:01:27]} Nbd7 {[%emt 0:00:12]} 12. Re1 {[%emt 0:01:43]} Ng4 {[%emt 0:00:22]} 13. Nd2 {[%emt 0:04:09]} Nge5 {[%emt 0:01:20]} 14. Qe2 {[%emt 0:02:58]} Nb6 {[%emt 0:05:42]} 15. f4 {[%emt 0:12:24]} Ned7 {[%emt 0:00:39][%cal Be5d7,Bd7c5,Bc5a4,Ba4c3][%mdl 32]} 16. Qd3 {[%emt 0:01:39]} Qc8 {[%emt 0:05:57]} 17. b3 {[%emt 0:15:02]} (17. Qc2 $11) 17... c4 $1 $15 {[%emt 0:10:45]} 18. Nxc4 {[%emt 0:02:31]} (18. bxc4 $17 {was forced.} Nc5 19. Qf3) 18... Nxc4 $2 {[%emt 0:00:07]} (18... Nc5 $1 $19 {[%cal Rc5d3]} 19. Qf3 Nxb3 20. Nxb6 Qxc3 21. Qxc3 (21. axb3 $2 {is the wrong capture.} Rxa1 22. Qxc3 Bxc3 $19) 21... Bxc3 22. Nxa8 (22. axb3 $2 {too greedy.} Rxa1 23. Rf1 Bd4 $19) 22... Nxa1) 19. bxc4 $11 {[%emt 0:00:08]} Nc5 {[%emt 0:10:11]} 20. Qc2 {[%emt 0:01:42]} (20. Qd2 $15) 20... Qa6 $1 $17 {[%emt 0:00:23]} 21. e5 {[%emt 0:15:07]} Qxc4 {[%emt 0:01:13] And now ...Rfc8 would win.} 22. Bd2 {[%emt 0:00:23]} Rfc8 {[%emt 0:06:06]} 23. Re3 {[%emt 0:09:34]} dxe5 {[%emt 0:08:02]} 24. fxe5 {[%emt 0:01:05]} Na4 {[%emt 0:13:51]} 25. Qb3 {[%emt 0:10:12]} (25. Re4 $17 Qxd5 26. Nxd5 Rxc2 27. Re2) 25... Qd4 $19 {[%emt 0:00:33][%csl LRd2,LRe5]} 26. Rd1 {[%emt 0:03:36]} Nxc3 {[%emt 0:04:20]} ({Not} 26... Bxe5 27. Ne2 Qb2 28. Bc1 Qxb3 29. axb3 $14) 27. Rxc3 {[%emt 0:00:43]} Bxe5 {[%emt 0:00:40][%cal Rc8c3]} 28. Rf3 {[%emt 0:02:38][%cal Od5d6]} Rcb8 {[%emt 0:03:01]} 29. Qd3 {[%emt 0:03:29]} Rxa2 {[%emt 0:04:17] aiming for ...Qa4.} 30. Qxd4 {[%emt 0:00:42]} Bxd4 {[%emt 0:00:01]} 31. Rd3 {[%emt 0:00:17]} Bc5 {[%emt 0:00:45]} 32. Kf3 {[%emt 0:00:24]} Ra3 {[%emt 0:00:59]} (32... Bd6 $19 33. h4 Ra4) 33. Rxa3 $17 {[%emt 0:02:17]} Bxa3 {[%emt 0:00:02][%mdl 4096] Endgame KRB-KRB} 34. Bf4 {[%emt 0:00:10]} Rd8 {[%emt 0:00:11]} 35. Ke4 {[%emt 0:00:29]} Bd6 {[%emt 0:04:29]} 36. Bh6 {[%emt 0:02:07]} f6 {[%emt 0:00:20]} 37. Be3 {[%emt 0:00:08]} (37. Bf4 $17) 37... Kf7 $19 {[%emt 0:00:34]} 38. Rd2 {[%emt 0:00:51]} h5 {[%emt 0:04:38]} 39. Rd3 {[%emt 0:02:07] [#]} (39. Bf4 $17) 39... h4 $1 {[%emt 0:03:35][%mdl 512]} 40. Kf3 {[%emt 0:00:00]} (40. gxh4 Bxh2) 40... hxg3 {[%emt 0:00:00]} 41. hxg3 {[%emt 0:00:23]} Ke8 {[%emt 0:02:19]} 42. Bf2 {[%emt 0:01:10]} Kd7 {[%emt 0:01:03]} 43. Ke4 {[%emt 0:01:08]} Ra8 {[%emt 0:00:53]} 44. Bd4 {[%emt 0:02:02]} Ra4 {[%emt 0:00:37] Hoping for ...Bc5.} 45. Kf3 {[%emt 0:00:20]} Ra3 {[%emt 0:01:50]} ({Better is} 45... Rc4 $19 {White must now prevent ...Bc5.} 46. g4 g5) 46. Rxa3 $15 {[%emt 0:00:33]} Bxa3 {[%emt 0:00:02] KB-KB} 47. g4 {[%emt 0:00:07]} Bd6 {[%emt 0:06:09]} 48. Ke4 {[%emt 0:00:09]} Kc7 {[%emt 0:00:41]} 49. Be3 {[%emt 0:00:18]} Kb7 {[%emt 0:00:24]} 50. Bd4 {[%emt 0:00:11]} Ka6 {[%emt 0:00:17]} 51. Be3 {[%emt 0:00:05]} Kb5 {[%emt 0:00:23]} 52. Bd4 {[%emt 0:00:20]} Kc4 {[%emt 0:00:13][%cal Of6f5] ( -> ...f5+!)} 53. Be3 {[%emt 0:00:38]} Kc3 {[%emt 0:00:25]} 54. Bd4+ {[%emt 0:00:35]} Kc4 {[%emt 0:02:33][%cal Of6f5] ...f5+! is the strong threat.} 55. Be3 {[%emt 0:00:41] [#]} f5+ {[%emt 0:01:25]} 56. gxf5 $11 {[%emt 0:00:21]} gxf5+ {[%emt 0:00:02]} 57. Kxf5 {[%emt 0:00:07]} Kxd5 {[%emt 0:00:06] With the idea ...e5.} 58. Bg5 {[%emt 0:00:26] [#]} (58. Kg4 $11 {remains equal.}) 58... e6+ {[%emt 0:00:09]} (58... e5 $1 $17 {next ...e4 is good for Black.} 59. Be3 Bf8) 59. Kg4 $1 {[%emt 0:00:05]} Ke4 {[%emt 0:00:14]} 60. Bf6 {[%emt 0:00:14]} Be5 {[%emt 0:00:37]} 61. Be7 {[%emt 0:00:13]} Bc7 {[%emt 0:00:38]} 62. Bf6 {[%emt 0:00:04]} Bb6 {[%emt 0:00:23]} 63. Bg7 {[%emt 0:00:06]} Be3 {[%emt 0:02:12]} 64. Bf6 {[%emt 0:11:13] White happily takes the draw.   Weighted Error Value: White=0.28 (precise) /Black=0.29 (precise)} 1/2-1/2